Workbook

Sheet 운영위원
A1: 2015년도 예천군노인복지관 집행결과 보고서 총괄
A2: (1) 세입결산
A3: (단위 : 원)
A4: 세 입 | D4: 예산액(A) | E4: 수입액(B) | H4: 증감(B-A) | I4: 비고
A5: 관 | B5: 항 | C5: 목 | E5: 계 | F5: 보조금 | G5: 자부담
A6: 총 계 | D6: =D7+D10+D14+D17+D20+D25 -> 980,739,000 | E6: =E7+E10+E14+E17+E20+E25 -> 983,359,248 | F6: =F7+F10+F14+F17+F20+F25 -> 857,569,000 | G6: =G7+G10+G14+G17+G20+G25 -> 125,790,248 | H6: =E6-D6 -> 2,620,248
A7: 사업수입 | B7: 소 계 | D7: =D8 -> 31,420,000 | E7: =E8 -> 30,613,000 | G7: =G8 -> 30,613,000 | H7: =E7-D7 -> -807,000
B8: 사업수입 | C8: 계 | D8: =D9 -> 31,420,000 | E8: =E9 -> 30,613,000 | G8: =G9 -> 30,613,000 | H8: =E8-D8 -> -807,000
C9: 이용자부담금 | D9: 31,420,000 | E9: =G9 -> 30,613,000 | G9: 30,613,000 | H9: =E9-D9 -> -807,000
A10: 보조금수입 | B10: 소 계 | D10: =D11 -> 882,491,000 | E10: =E11 -> 882,491,000 | F10: =F11 -> 857,569,000 | G10: =G11 -> 24,922,000
B11: 보조금수입 | C11: 계 | D11: =D12+D13 -> 882,491,000 | E11: =SUM(E12:E13) -> 882,491,000 | F11: =F12 -> 857,569,000 | G11: =G13 -> 24,922,000
C12: 보조금수입 | D12: 857,569,000 | E12: =F12+G12 -> 857,569,000 | F12: 857,569,000
C13: 기타보조금수입 | D13: 24,922,000 | E13: =F13+G13 -> 24,922,000 | G13: 24,922,000
A14: 후원금수입 | B14: 소 계 | D14: =D15 -> 29,213,000 | E14: =E15 -> 32,340,657 | G14: =G15 -> 32,340,657 | H14: =E14-D14 -> 3,127,657
B15: 후원금수입 | C15: 계 | D15: =SUM(D16:D16) -> 29,213,000 | E15: =F15+G15 -> 32,340,657 | G15: =G16 -> 32,340,657 | H15: 3,127,657
C16: 후원금수입 | D16: 29,213,000 | E16: =F16+G16 -> 32,340,657 | G16: 32,340,657 | H16: 3,127,657
A17: 전입금수입 | B17: 소 계 | D17: =D18 -> 4,200,000 | E17: =E18 -> 4,200,000 | G17: =G18 -> 4,200,000
B18: 전입금수입 | C18: 계 | D18: =SUM(D19:D19) -> 4,200,000 | E18: =SUM(E19:E19) -> 4,200,000 | G18: =SUM(G19:G19) -> 4,200,000
C19: 법인전입금 | D19: 4,200,000 | E19: =F19+G19 -> 4,200,000 | G19: =[1]추경복지세입!N13 -> 4,200,000
A20: 이월금수입 | B20: 소 계 | D20: =D21 -> 31,047,008 | E20: =E21 -> 31,047,008 | G20: =G21 -> 31,047,008
B21: 이월금수입 | C21: 계 | D21: =SUM(D22:D24) -> 31,047,008 | E21: =G21 -> 31,047,008 | G21: =SUM(G22:G24) -> 31,047,008
C22: 전년도(후원금)이월금수입 | D22: 18,632,165 | E22: =F22+G22 -> 18,632,165 | G22: 18,632,165
C23: 전년도(사업)이월금수입 | D23: 12,107,061 | E23: =F23+G23 -> 12,107,061 | G23: 12,107,061
C24: 전년도(이자)이월금수입 | D24: 307,782 | E24: =G24 -> 307,782 | G24: 307,782
A25: 잡 수 입 | B25: 소 계 | D25: =D26 -> 2,367,992 | E25: =F25+G25 -> 2,667,583 | G25: =G26 -> 2,667,583 | H25: 299,591
B26: 잡 수 입 | C26: 계 | D26: =SUM(D27:D28) -> 2,367,992 | E26: =F26+G26 -> 2,667,583 | G26: =SUM(G27:G28) -> 2,667,583 | H26: 299,591
C27: 예금이자수입 | D27: 367,992 | E27: =F27+G27 -> 314,062 | G27: 314,062 | H27: -53,930
C28: 기타잡수입 | D28: 2,000,000 | E28: =F28+G28 -> 2,353,521 | G28: 2,353,521 | H28: 353,521
A29: (3) 세출결산
B30: (단위 : 원)
A31: 과 목 | D31: 예산액(A) | E31: 집행액(B) | H31: 잔액(A-B) | I31: 비고
A32: 관 | B32: 항 | C32: 목 | E32: 계 | F32: 보조금 | G32: 자부담
A33: 총 계 | D33: =D34+D52+D61+D87 -> 980,739,000 | E33: =F33+G33 -> 945,138,604 | F33: =F34+F52+F61+F87 -> 857,569,000 | G33: =G34+G52+G61+G87 -> 87,569,604 | H33: =D33-E33 -> 35,600,396
A34: 사 무 비 | B34: 소 계 | D34: =D35+D41+D45 -> 389,626,461 | E34: =F34+G34 -> 385,182,941 | F34: =F35+F41+F45 -> 375,548,890 | G34: =G35+G41+G45 -> 9,634,051 | H34: =D34-E34 -> 4,443,520
B35: 인건비 | C35: 계 | D35: =SUM(D36:D40) -> 332,849,441 | E35: =SUM(E36:E40) -> 332,299,521 | F35: =SUM(F36:F40) -> 325,437,762 | G35: =SUM(G36:G40) -> 6,861,759 | H35: 549,920
C36: 기본급 | D36: 225,299,760 | E36: =F36+G36 -> 225,299,760 | F36: 221,866,320 | G36: 3,433,440
C37: 제수당 | D37: 34,760,000 | E37: 34,706,200 | F37: 33,709,640 | G37: 996,560 | H37: 53,800
C38: 퇴직적립금 | D38: 26,250,000 | E38: 25,926,901 | F38: 25,926,901 | H38: 323,099
C39: 사회보험부담금 | D39: 26,048,081 | E39: 26,025,280 | F39: 23,603,301 | G39: 2,421,979 | H39: 22,801
C40: 기타후생경비 | D40: 20,491,600 | E40: 20,341,380 | F40: 20,331,600 | G40: 9,780 | H40: 150,220
B41: 업무추진비 | C41: 계 | D41: =SUM(D42:D44) -> 6,240,000 | E41: 5,991,540 | F41: =SUM(F42:F44) -> 5,940,000 | G41: =SUM(G42:G44) -> 51,540 | H41: 248,460
C42: 기관운영비 | D42: 2,040,000 | E42: 1,961,540 | F42: 1,940,000 | G42: 21,540
C43: 직책보조비 | D43: 3,600,000 | E43: 3,600,000 | F43: 3,600,000
C44: 회의비 | D44: 600,000 | E44: 430,000 | F44: 400,000 | G44: 30,000 | H44: 170,000
B45: 운영비 | C45: 계 | D45: =SUM(D46:D51) -> 50,537,020 | E45: 46,891,880 | F45: =SUM(F46:F51) -> 44,171,128 | G45: =SUM(G46:G51) -> 2,720,752 | H45: 3,645,140
C46: 여비 | D46: 3,840,000 | E46: 3,321,400 | F46: 2,913,000 | G46: 408,400 | H46: 518,600
C47: 수용비및수수료 | D47: 10,200,000 | E47: 8,538,230 | F47: 8,079,470 | G47: 458,760 | H47: 1,661,770
C48: 공공요금 | D48: 15,720,000 | E48: 15,353,440 | F48: 14,371,378 | G48: 982,062 | H48: 366,560
C49: 제세공과금 | D49: 12,652,020 | E49: 12,349,110 | F49: 11,532,660 | G49: 816,450 | H49: 302,910
C50: 차량비 | D50: 6,425,000 | E50: 5,905,700 | F50: 5,850,620 | G50: 55,080 | H50: 519,300
C51: 연료비 | D51: 1,700,000 | E51: 1,424,000 | F51: 1,424,000 | H51: 276,000
A52: 재산조성비 | B52: 소계 | D52: =D53 -> 28,725,000 | E52: =F52+G52 -> 25,291,300 | F52: =F53 -> 22,276,000 | G52: =G53 -> 3,015,300 | H52: 3,433,700
B53: 시설비 | C53: 계 | D53: =SUM(D54:D56) -> 28,725,000 | E53: =SUM(E54:E56) -> 25,291,300 | F53: =F54+F55+F56 -> 22,276,000 | G53: =SUM(G54:G56) -> 3,015,300 | H53: 3,433,700
C54: 시설비 | D54: 4,000,000 | E54: =F54+G54 -> 1,200,000 | F54: 1,200,000
C55: 자산취득비 | D55: 16,125,000 | E55: =F55+G55 -> 15,965,300 | F55: 14,061,000 | G55: 1,904,300 | H55: 159,700
C56: 시설장비유지비 | D56: 8,600,000 | E56: =F56+G56 -> 8,126,000 | F56: 7,015,000 | G56: 1,111,000 | H56: 474,000
A57: (3) 세출결산
B58: (단위 : 원)
A59: 과 목 | D59: 예산액(A) | E59: 집행액(B) | H59: 잔액(A-B) | I59: 비고
A60: 관 | B60: 항 | C60: 목 | E60: 계 | F60: 보조금 | G60: 자부담
A61: 사업비 | B61: 소 계 | D61: =D62 -> 561,428,400 | E61: =E62 -> 533,813,100 | F61: =F62 -> 459,744,110 | G61: =G62 -> 74,068,990 | H61: 27,615,300
B62: 사업비 | C62: 계 | D62: =SUM(D63:D86) -> 561,428,400 | E62: =F62+G62 -> 533,813,100 | F62: =SUM(F63:F86) -> 459,744,110 | G62: =SUM(G63:G86) -> 74,068,990 | H62: 27,615,300
C63: 정서생활지원사업 | D63: 1,180,140 | E63: =SUM(F63:G63) -> 1,180,140 | F63: 1,180,140
C64: 사회교육지원사업 | D64: 52,213,000 | E64: 42,974,000 | F64: 42,974,000 | H64: 9,239,000
C65: 건강생활지원사업 | D65: 4,300,000 | E65: 4,000,000 | F65: 3,500,000 | G65: 500,000
C66: 재가복지사업 | D66: 4,035,000 | E66: 1,535,000 | F66: 660,000 | G66: 875,000 | H66: 2,500,000
C67: 경로증진사업 | D67: 1,134,220 | E67: 1,134,220 | F67: 426,700 | G67: 707,520
C68: 사회참여사업 | D68: 2,280,000 | E68: 1,766,920 | F68: 942,620 | G68: 824,300 | H68: 513,080
C69: 연구개발사업 | D69: 9,800,000 | E69: 6,318,650 | F69: 3,783,650 | G69: 2,535,000 | H69: 3,481,350
C70: 지역자원개발및 연계사업 | D70: 2,248,800 | E70: 1,005,070 | F70: 300,000 | G70: 705,070 | H70: 1,243,730
C71: 연계사업 | D71: 1,702,000 | E71: 1,442,000 | F71: 152,000 | G71: 1,290,000
C72: 아산재단사업 | D72: 11,470,000 | E72: 11,470,000 | G72: 11,470,000 | H72: 0
C73: 무용사업 | D73: 3,000,000 | E73: 3,000,000 | G73: 3,000,000
C74: 방송통신예방교육사업 | D74: 2,272,000 | E74: 2,272,000 | G74: 2,272,000
C75: 허위`과대광고예방교육사업 | D75: 3,250,000 | E75: 3,250,000 | G75: 3,250,000
C76: 한국문화유산탐방사업 | D76: 5,200,000 | E76: 5,200,000 | G76: 5,200,000
C77: 아산재단(노노케어)사업 | D77: 9,600,000 | E77: 2,225,410 | G77: 2,225,410
C78: 노인자원봉사활성화사업 | D78: 1,600,000 | E78: 1,600,000 | G78: 1,600,000 | H78: 0
C79: 경로당활성화사업 | D79: 59,481,240 | E79: =F79+G79 -> 58,280,850 | F79: 50,000,000 | G79: 8,280,850
C80: 관학연계이동복지관 | D80: 23,000,000 | E80: 23,000,000 | F80: 23,000,000
C81: 경로식당무료급식사업 | D81: 83,337,000 | E81: 81,906,280 | F81: 54,213,000 | G81: 27,693,280 | H81: 1,430,720
C82: 도시락배살사업 | D82: 27,425,000 | E82: 27,375,000 | F82: 27,375,000 | H82: 50,000
C83: YOYO클럽활성화사업 | D83: 6,000,000 | E83: 6,000,000 | F83: 6,000,000
C84: YOYO공연예술단사업 | D84: 7,000,000 | E84: 7,000,000 | F84: 7,000,000
C85: 성인문해 | D85: 12,000,000 | E85: 12,000,000 | F85: 12,000,000
C86: 노인사회활동지원사업 | D86: 227,900,000 | E86: 227,877,560 | F86: 226,237,000 | G86: 1,640,560 | H86: 22,440
A87: 잡지출 | B87: 소 계 | D87: =D88 -> 959,139 | E87: =E88 -> 851,263 | G87: =G88 -> 851,263 | H87: 107,876
B88: 잡지출 | C88: 계 | D88: =D89 -> 959,139 | E88: =E89 -> 851,263 | G88: =G89 -> 851,263 | H88: 107,876
C89: 잡지출 | D89: 959,139 | E89: =F89+G89 -> 851,263 | G89: 851,263 | H89: 107,876
